[Event "*** Qualifier 4: Titled Tuesday 3|2 Blitz"]
[Site "Chess.com"]
[Date "2017.04.25"]
[Round "7"]
[White "GMHess"]
[Black "underdogchss"]
[Result "1-0"]
[WhiteElo "2574"]
[BlackElo "2401"]
[TimeControl "180+2"]
[EndTime "14:32:42 PDT"]
[Termination "GMHess won by resignation"]

1. c4 {[%clk 0:02:54.8]} 1... Nf6 {[%clk 0:02:57.2]} 2. Nc3 {[%clk 0:02:55.5]}
2... c5 {[%clk 0:02:58]} 3. Nf3 {[%clk 0:02:56.1]} 3... b6 {[%clk 0:02:58.3]} 4.
e3 {[%clk 0:02:52.7]} 4... e6 {[%clk 0:02:51.4]} 5. d4 {[%clk 0:02:53.9]} 5...
cxd4 {[%clk 0:02:52.6]} 6. exd4 {[%clk 0:02:50.7]} 6... Bb4 {[%clk 0:02:53.1]}
7. Bg5 {[%clk 0:02:42.4]} 7... h6 {[%clk 0:02:52.6]} 8. Bh4 {[%clk 0:02:40.1]}
8... O-O {[%clk 0:02:52.1]} 9. Rc1 {[%clk 0:02:24.1]} 9... d5 {[%clk 0:02:47.8]}
10. a3 {[%clk 0:02:19.9]} 10... Be7 {[%clk 0:02:47.8]} 11. Bxf6 {[%clk
0:02:19.2]} 11... Bxf6 {[%clk 0:02:48.4]} 12. cxd5 {[%clk 0:02:20.8]} 12... exd5
{[%clk 0:02:49.4]} 13. Be2 {[%clk 0:02:17.9]} 13... Nc6 {[%clk 0:02:01.6]} 14.
O-O {[%clk 0:02:03.6]} 14... Bb7 {[%clk 0:01:59.8]} 15. Qd3 {[%clk 0:01:45.2]}
15... Rc8 {[%clk 0:01:54.5]} 16. Rc2 {[%clk 0:01:20.8]} 16... Re8 {[%clk
0:01:50.8]} 17. Rfc1 {[%clk 0:01:21.3]} 17... Na5 {[%clk 0:01:50.5]} 18. Qf5
{[%clk 0:00:59.9]} 18... g6 {[%clk 0:01:16]} 19. Qf4 {[%clk 0:00:48.5]} 19...
Kg7 {[%clk 0:01:09.5]} 20. h4 {[%clk 0:00:41.4]} 20... Nb3 {[%clk 0:01:03.6]}
21. Rd1 {[%clk 0:00:42.3]} 21... Qc7 {[%clk 0:00:56.3]} 22. Qg4 {[%clk
0:00:31.3]} 22... h5 {[%clk 0:00:56.8]} 23. Qh3 {[%clk 0:00:30]} 23... Re6
{[%clk 0:00:51.3]} 24. Bd3 {[%clk 0:00:24]} 24... Qe7 {[%clk 0:00:48.1]} 25.
Nxd5 {[%clk 0:00:21.2]} 25... Qd8 {[%clk 0:00:33.4]} 26. Nxf6 {[%clk 0:00:16.7]}
26... Rxf6 {[%clk 0:00:27.8]} 27. d5 {[%clk 0:00:11.1]} 27... Rxc2 {[%clk
0:00:22.5]} 28. Bxc2 {[%clk 0:00:13]} 28... Bc8 {[%clk 0:00:23.3]} 29. Qg3
{[%clk 0:00:12.4]} 29... Nc5 {[%clk 0:00:23.8]} 30. Ne5 {[%clk 0:00:11.6]} 30...
Qd6 {[%clk 0:00:21.2]} 31. Qc3 {[%clk 0:00:08.5]} 31... Ba6 {[%clk 0:00:14.8]}
32. b4 {[%clk 0:00:07]} 32... Nb7 {[%clk 0:00:14.3]} 33. Ba4 {[%clk 0:00:05.4]}
33... Be2 {[%clk 0:00:13.6]} 34. Rd2 {[%clk 0:00:04.7]} 34... b5 {[%clk
0:00:13.6]} 35. Rxe2 {[%clk 0:00:03.6]} 35... bxa4 {[%clk 0:00:14.8]} 36. Rd2
{[%clk 0:00:04.8]} 36... Kh7 {[%clk 0:00:14.4]} 37. Nf3 {[%clk 0:00:05.6]} 37...
Qf4 {[%clk 0:00:13.4]} 38. Rd4 {[%clk 0:00:05.7]} 38... Qd6 {[%clk 0:00:11.7]}
39. Ng5+ {[%clk 0:00:06.3]} 39... Kg8 {[%clk 0:00:11.2]} 40. Ne4 {[%clk
0:00:07.6]} 40... Qe5 {[%clk 0:00:08.8]} 41. Nxf6+ {[%clk 0:00:08.5]} 41... Qxf6
{[%clk 0:00:09.8]} 42. g3 {[%clk 0:00:05.8]} 42... Nd6 {[%clk 0:00:10]} 43. Qd2
{[%clk 0:00:04.6]} 43... Nf5 {[%clk 0:00:10.3]} 44. Rd3 {[%clk 0:00:04.9]} 44...
Qa1+ {[%clk 0:00:11.3]} 45. Kg2 {[%clk 0:00:06.2]} 45... Kh7 {[%clk 0:00:11.1]}
46. d6 {[%clk 0:00:06.9]} 46... Qf6 {[%clk 0:00:08.7]} 47. d7 {[%clk 0:00:07.8]}
47... Qc6+ {[%clk 0:00:10]} 48. Kg1 {[%clk 0:00:07.8]} 48... Nxh4 {[%clk
0:00:08.4]} 49. gxh4 {[%clk 0:00:09.7]} 49... Qe6 {[%clk 0:00:06.1]} 50. d8=Q
{[%clk 0:00:10.3]} 1-0

[Event "*** Qualifier 4: Titled Tuesday 3|2 Blitz"]
[Site "Chess.com"]
[Date "2017.04.25"]
[Round "7"]
[White "prochn"]
[Black "Robin-Side"]
[Result "1-0"]
[WhiteElo "2185"]
[BlackElo "2285"]
[TimeControl "180+2"]
[EndTime "14:32:58 PDT"]
[Termination "prochn won by resignation"]

1. d4 {[%clk 0:03:02]} 1... Nf6 {[%clk 0:03:00.2]} 2. c4 {[%clk 0:03:02.9]} 2...
g6 {[%clk 0:03:01.1]} 3. g3 {[%clk 0:03:03.2]} 3... Bg7 {[%clk 0:03:00.6]} 4.
Bg2 {[%clk 0:03:04.5]} 4... d5 {[%clk 0:03:02.2]} 5. cxd5 {[%clk 0:03:03.7]}
5... Nxd5 {[%clk 0:03:04.1]} 6. Nc3 {[%clk 0:03:00.5]} 6... Nb6 {[%clk
0:02:54.6]} 7. Nf3 {[%clk 0:02:58.7]} 7... O-O {[%clk 0:02:54]} 8. O-O {[%clk
0:02:58.2]} 8... Nc6 {[%clk 0:02:52.3]} 9. e3 {[%clk 0:02:34.5]} 9... Re8 {[%clk
0:02:52.9]} 10. b3 {[%clk 0:02:26.8]} 10... e5 {[%clk 0:02:23.6]} 11. dxe5
{[%clk 0:01:54]} 11... Nxe5 {[%clk 0:02:20.1]} 12. Nd4 {[%clk 0:01:44.8]} 12...
c6 {[%clk 0:02:11]} 13. Bb2 {[%clk 0:01:44.9]} 13... Qe7 {[%clk 0:01:54.7]} 14.
h3 {[%clk 0:01:41.5]} 14... Be6 {[%clk 0:01:44.5]} 15. Qc2 {[%clk 0:01:40.8]}
15... Rad8 {[%clk 0:01:40.5]} 16. Nce2 {[%clk 0:01:35.5]} 16... Bc8 {[%clk
0:01:04.3]} 17. Rfd1 {[%clk 0:01:33.7]} 17... Nd5 {[%clk 0:00:47.1]} 18. Rac1
{[%clk 0:01:34.4]} 18... Nc7 {[%clk 0:00:37.3]} 19. a3 {[%clk 0:01:27.9]} 19...
Ne6 {[%clk 0:00:38.1]} 20. b4 {[%clk 0:01:26.4]} 20... Nxd4 {[%clk 0:00:35.2]}
21. Bxd4 {[%clk 0:01:26.6]} 21... a6 {[%clk 0:00:30.3]} 22. Bb6 {[%clk
0:01:24.8]} 22... Rxd1+ {[%clk 0:00:30.5]} 23. Rxd1 {[%clk 0:01:26.5]} 23... Bf5
{[%clk 0:00:31.1]} 24. e4 {[%clk 0:01:25.3]} 24... Be6 {[%clk 0:00:31.7]} 25.
Nf4 {[%clk 0:01:21.3]} 25... Nc4 {[%clk 0:00:24.8]} 26. Bc5 {[%clk 0:01:21.5]}
26... Qf6 {[%clk 0:00:21.1]} 27. Nxe6 {[%clk 0:01:17.4]} 27... Qxe6 {[%clk
0:00:21.5]} 28. a4 {[%clk 0:01:17.5]} 28... Bf8 {[%clk 0:00:12.5]} 29. Kh2
{[%clk 0:01:01]} 29... Bxc5 {[%clk 0:00:12.4]} 30. bxc5 {[%clk 0:01:02.9]} 30...
Ne5 {[%clk 0:00:09.1]} 31. f4 {[%clk 0:01:03.2]} 31... Nd7 {[%clk 0:00:09]} 32.
h4 {[%clk 0:00:59.4]} 32... Nf6 {[%clk 0:00:09.4]} 33. Qb2 {[%clk 0:00:51.2]}
33... Ng4+ {[%clk 0:00:09.3]} 34. Kg1 {[%clk 0:00:50.2]} 34... h5 {[%clk
0:00:08.1]} 35. Qxb7 {[%clk 0:00:47.4]} 35... Qc4 {[%clk 0:00:02.4]} 36. Qxc6
{[%clk 0:00:46.5]} 36... Rb8 {[%clk 0:00:03.1]} 37. Qd5 {[%clk 0:00:40.7]} 37...
Qc2 {[%clk 0:00:03.6]} 38. Qd2 {[%clk 0:00:30.4]} 38... Qxc5+ {[%clk 0:00:03.8]}
39. Kh1 {[%clk 0:00:31.9]} 39... Nf2+ {[%clk 0:00:03.7]} 40. Kh2 {[%clk
0:00:33.3]} 40... Nxd1 {[%clk 0:00:03.7]} 41. Qxd1 {[%clk 0:00:35]} 41... Qe3
{[%clk 0:00:04.1]} 42. e5 {[%clk 0:00:34.1]} 42... Rb3 {[%clk 0:00:04.4]} 43.
Qd8+ {[%clk 0:00:34.9]} 43... Kh7 {[%clk 0:00:04.8]} 44. Qg5 {[%clk 0:00:33.9]}
44... Rb2 {[%clk 0:00:03.3]} 45. f5 {[%clk 0:00:28.8]} 45... Qxg5 {[%clk
0:00:03]} 46. hxg5 {[%clk 0:00:28.5]} 46... gxf5 {[%clk 0:00:03.1]} 47. Kh3
{[%clk 0:00:30.2]} 47... Kg6 {[%clk 0:00:03.9]} 48. Bd5 {[%clk 0:00:27.5]} 48...
Rb4 {[%clk 0:00:03.2]} 49. Bc6 {[%clk 0:00:26.9]} 49... Rc4 {[%clk 0:00:03.7]}
50. Be8 {[%clk 0:00:27.6]} 50... Rc5 {[%clk 0:00:04]} 51. e6 {[%clk 0:00:28.3]}
51... Kg7 {[%clk 0:00:03.7]} 52. Bxf7 {[%clk 0:00:26.7]} 52... Re5 {[%clk
0:00:03.8]} 53. g6 {[%clk 0:00:27.1]} 53... Re4 {[%clk 0:00:04.5]} 54. Kg2
{[%clk 0:00:27.2]} 54... Rxa4 {[%clk 0:00:02.8]} 55. e7 {[%clk 0:00:28.6]} 55...
Re4 {[%clk 0:00:02.9]} 56. e8=Q {[%clk 0:00:29.3]} 56... Rxe8 {[%clk 0:00:03.8]}
57. Bxe8 {[%clk 0:00:30.6]} 57... a5 {[%clk 0:00:04.8]} 58. Kh3 {[%clk
0:00:26.7]} 58... Kf6 {[%clk 0:00:04.9]} 59. Kh4 {[%clk 0:00:27.3]} 59... Kg7
{[%clk 0:00:06]} 60. Kxh5 {[%clk 0:00:28.4]} 1-0

[Event "*** Qualifier 4: Titled Tuesday 3|2 Blitz"]
[Site "Chess.com"]
[Date "2017.04.25"]
[Round "7"]
[White "poummba"]
[Black "Malev212"]
[Result "1/2-1/2"]
[WhiteElo "2361"]
[BlackElo "2455"]
[TimeControl "180+2"]
[EndTime "14:33:14 PDT"]
[Termination "Game drawn by repetition"]

1. e4 {[%clk 0:02:59.3]} 1... g6 {[%clk 0:03:00]} 2. d4 {[%clk 0:02:59.9]} 2...
Bg7 {[%clk 0:03:01.6]} 3. Nf3 {[%clk 0:03:01.6]} 3... d6 {[%clk 0:03:00.1]} 4.
Bc4 {[%clk 0:03:02.7]} 4... e6 {[%clk 0:02:59.9]} 5. O-O {[%clk 0:03:03.7]} 5...
Ne7 {[%clk 0:02:59.7]} 6. Qe2 {[%clk 0:03:04.5]} 6... d5 {[%clk 0:02:59.8]} 7.
exd5 {[%clk 0:03:03.6]} 7... exd5 {[%clk 0:03:00.7]} 8. Bd3 {[%clk 0:03:03.3]}
8... O-O {[%clk 0:03:01.3]} 9. Bg5 {[%clk 0:03:03.8]} 9... Nbc6 {[%clk
0:02:58.7]} 10. Re1 {[%clk 0:03:01.5]} 10... Re8 {[%clk 0:02:58.1]} 11. c3
{[%clk 0:02:58.1]} 11... h6 {[%clk 0:02:58.3]} 12. Bh4 {[%clk 0:02:57.9]} 12...
g5 {[%clk 0:02:57.9]} 13. Bg3 {[%clk 0:02:59.2]} 13... Bg4 {[%clk 0:02:54.9]}
14. Nbd2 {[%clk 0:02:51.9]} 14... Qd7 {[%clk 0:02:53.6]} 15. Qf1 {[%clk
0:02:50.6]} 15... Nf5 {[%clk 0:02:32.9]} 16. h4 {[%clk 0:02:23]} 16... f6 {[%clk
0:02:12.1]} 17. hxg5 {[%clk 0:01:52.7]} 17... hxg5 {[%clk 0:02:10.9]} 18. Nh2
{[%clk 0:01:53.9]} 18... Nxg3 {[%clk 0:01:55.8]} 19. fxg3 {[%clk 0:01:53.9]}
19... Be6 {[%clk 0:01:57.1]} 20. Nb3 {[%clk 0:01:41]} 20... b6 {[%clk
0:01:50.1]} 21. Bb5 {[%clk 0:01:41.7]} 21... Qd6 {[%clk 0:01:47]} 22. Nd2 {[%clk
0:01:35.5]} 22... Bd7 {[%clk 0:01:43.1]} 23. Qf2 {[%clk 0:01:32.2]} 23... a6
{[%clk 0:01:30.9]} 24. Bd3 {[%clk 0:01:33.2]} 24... Ne7 {[%clk 0:01:31.1]} 25.
Re2 {[%clk 0:01:24]} 25... c5 {[%clk 0:01:31.3]} 26. Rae1 {[%clk 0:01:25]} 26...
cxd4 {[%clk 0:01:28.6]} 27. Qxd4 {[%clk 0:01:19.9]} 27... f5 {[%clk 0:01:22.7]}
28. Qf2 {[%clk 0:01:13.3]} 28... g4 {[%clk 0:01:17.2]} 29. Nhf1 {[%clk
0:01:06.6]} 29... b5 {[%clk 0:01:11.1]} 30. Nb3 {[%clk 0:01:06.8]} 30... Qf6
{[%clk 0:00:57.5]} 31. Nc5 {[%clk 0:00:51.6]} 31... Bc8 {[%clk 0:00:56.4]} 32.
Ne3 {[%clk 0:00:52.9]} 32... Ra7 {[%clk 0:00:55.3]} 33. Nxd5 {[%clk 0:00:52.1]}
33... Qd6 {[%clk 0:00:56.2]} 34. Nxe7+ {[%clk 0:00:44.8]} 34... Raxe7 {[%clk
0:00:56.8]} 35. Rxe7 {[%clk 0:00:40.4]} 35... Rxe7 {[%clk 0:00:57.7]} 36. Rxe7
{[%clk 0:00:40.6]} 36... Qxe7 {[%clk 0:00:58.6]} 37. Bxf5 {[%clk 0:00:35.2]}
37... Bxf5 {[%clk 0:00:45]} 38. Qxf5 {[%clk 0:00:36]} 38... b4 {[%clk
0:00:46.2]} 39. Qd5+ {[%clk 0:00:16]} 39... Kh8 {[%clk 0:00:45.8]} 40. cxb4
{[%clk 0:00:12.4]} 40... Qe3+ {[%clk 0:00:41.9]} 41. Kh2 {[%clk 0:00:12.7]}
41... Qh6+ {[%clk 0:00:41.6]} 42. Kg1 {[%clk 0:00:12]} 42... Qe3+ {[%clk
0:00:39.2]} 43. Kf1 {[%clk 0:00:12.8]} 43... Bd4 {[%clk 0:00:33.1]} 44. Qh5+
{[%clk 0:00:12.8]} 44... Kg7 {[%clk 0:00:32.5]} 45. Qxg4+ {[%clk 0:00:13.9]}
45... Kh8 {[%clk 0:00:33]} 46. Qh4+ {[%clk 0:00:11.7]} 46... Kg8 {[%clk
0:00:33.9]} 47. Qg4+ {[%clk 0:00:11.6]} 47... Kh8 {[%clk 0:00:34.6]} 48. Qh5+
{[%clk 0:00:11.8]} 48... Kg8 {[%clk 0:00:34.7]} 49. Qf3 {[%clk 0:00:11.5]} 49...
Qc1+ {[%clk 0:00:32.7]} 50. Ke2 {[%clk 0:00:12.8]} 50... Qc2+ {[%clk 0:00:33.5]}
51. Ke1 {[%clk 0:00:11.2]} 51... Qxb2 {[%clk 0:00:23.8]} 52. Nd3 {[%clk
0:00:08.4]} 52... Qc3+ {[%clk 0:00:20.6]} 53. Kd1 {[%clk 0:00:09]} 53... Qa1+
{[%clk 0:00:21]} 54. Ke2 {[%clk 0:00:07.8]} 54... Qxa2+ {[%clk 0:00:21.3]} 55.
Kd1 {[%clk 0:00:09]} 55... Qb1+ {[%clk 0:00:21.5]} 56. Ke2 {[%clk 0:00:09.9]}
56... Qc2+ {[%clk 0:00:21.8]} 57. Kf1 {[%clk 0:00:11]} 57... Qb1+ {[%clk
0:00:20.5]} 58. Ne1 {[%clk 0:00:10.6]} 58... Qxb4 {[%clk 0:00:21]} 59. Qd5+
{[%clk 0:00:10.3]} 59... Kg7 {[%clk 0:00:21.3]} 60. Qg5+ {[%clk 0:00:11.2]}
60... Kh7 {[%clk 0:00:21.5]} 61. Qf5+ {[%clk 0:00:11.5]} 61... Kg7 {[%clk
0:00:22.3]} 62. Qg5+ {[%clk 0:00:12.2]} 62... Kh7 {[%clk 0:00:23]} 63. Qf5+
{[%clk 0:00:13.5]} 63... Kg7 {[%clk 0:00:24]} 64. Qg5+ {[%clk 0:00:14.7]} 64...
Kh7 {[%clk 0:00:24.2]} 65. Qf5+ {[%clk 0:00:15.9]} 1/2-1/2

[Event "*** Qualifier 4: Titled Tuesday 3|2 Blitz"]
[Site "Chess.com"]
[Date "2017.04.25"]
[Round "7"]
[White "ehrenfeld"]
[Black "Ar4uha"]
[Result "1-0"]
[WhiteElo "2380"]
[BlackElo "2439"]
[TimeControl "180+2"]
[EndTime "14:33:17 PDT"]
[Termination "ehrenfeld won by resignation"]

1. e4 {[%clk 0:03:02]} 1... d5 {[%clk 0:02:52]} 2. exd5 {[%clk 0:03:02.2]} 2...
Nf6 {[%clk 0:02:43.5]} 3. Bb5+ {[%clk 0:03:02.1]} 3... Bd7 {[%clk 0:02:44]} 4.
Bxd7+ {[%clk 0:02:47.5]} 4... Qxd7 {[%clk 0:02:44.7]} 5. Nf3 {[%clk 0:02:46.7]}
5... Nxd5 {[%clk 0:02:45.6]} 6. O-O {[%clk 0:02:47.4]} 6... e6 {[%clk
0:02:46.8]} 7. d4 {[%clk 0:02:48.4]} 7... Be7 {[%clk 0:02:47.8]} 8. Qe2 {[%clk
0:02:49.4]} 8... O-O {[%clk 0:02:48.6]} 9. Rd1 {[%clk 0:02:50.2]} 9... c6 {[%clk
0:02:49.5]} 10. Ne5 {[%clk 0:02:49.2]} 10... Qc7 {[%clk 0:02:50.8]} 11. Nd2
{[%clk 0:02:47.8]} 11... Nd7 {[%clk 0:02:50.8]} 12. Ndf3 {[%clk 0:02:47.5]}
12... Nxe5 {[%clk 0:02:52.3]} 13. Nxe5 {[%clk 0:02:47]} 13... Rad8 {[%clk
0:02:53.9]} 14. c4 {[%clk 0:02:46.7]} 14... Nb6 {[%clk 0:02:52.7]} 15. Bf4
{[%clk 0:02:46.6]} 15... Qc8 {[%clk 0:02:51.1]} 16. Rac1 {[%clk 0:02:45.6]}
16... Nd7 {[%clk 0:02:52]} 17. Nf3 {[%clk 0:02:41.9]} 17... Nf6 {[%clk 0:02:51]}
18. h3 {[%clk 0:02:33.6]} 18... b6 {[%clk 0:02:51.8]} 19. Qc2 {[%clk 0:02:33.7]}
19... Qa6 {[%clk 0:02:50.6]} 20. Bg5 {[%clk 0:02:25.2]} 20... h6 {[%clk
0:02:49.6]} 21. Bf4 {[%clk 0:02:19.7]} 21... Bd6 {[%clk 0:02:49.5]} 22. Be3
{[%clk 0:02:12.4]} 22... c5 {[%clk 0:02:44.3]} 23. dxc5 {[%clk 0:02:06.2]} 23...
Bxc5 {[%clk 0:02:46.2]} 24. Bxc5 {[%clk 0:02:06.3]} 24... bxc5 {[%clk
0:02:48.1]} 25. b3 {[%clk 0:02:06.3]} 25... Qc6 {[%clk 0:02:46.3]} 26. Ne5
{[%clk 0:02:04.2]} 26... Qc7 {[%clk 0:02:45.4]} 27. Qe2 {[%clk 0:02:03.8]} 27...
Rd4 {[%clk 0:02:44.2]} 28. Nf3 {[%clk 0:02:01.9]} 28... Rxd1+ {[%clk 0:02:42.5]}
29. Rxd1 {[%clk 0:02:02.6]} 29... Rd8 {[%clk 0:02:44.4]} 30. Rxd8+ {[%clk
0:02:01.4]} 30... Qxd8 {[%clk 0:02:46.3]} 31. Ne5 {[%clk 0:01:57]} 31... Qd4
{[%clk 0:02:42.8]} 32. Nc6 {[%clk 0:01:48.2]} 32... Qa1+ {[%clk 0:02:43.7]} 33.
Kh2 {[%clk 0:01:48.1]} 33... a6 {[%clk 0:02:43.7]} 34. Ne5 {[%clk 0:01:33.7]}
34... Qd4 {[%clk 0:02:40.8]} 35. Nf3 {[%clk 0:01:16.3]} 35... Qf4+ {[%clk
0:02:41.8]} 36. g3 {[%clk 0:01:17.1]} 36... Qf5 {[%clk 0:02:43.4]} 37. Kg2
{[%clk 0:01:13.5]} 37... g5 {[%clk 0:02:43.6]} 38. Qe5 {[%clk 0:01:10.8]} 38...
Qxe5 {[%clk 0:02:36.9]} 39. Nxe5 {[%clk 0:01:11.1]} 39... Kf8 {[%clk 0:02:38.4]}
40. Kf3 {[%clk 0:01:10.2]} 40... Ke7 {[%clk 0:02:38.9]} 41. Ke3 {[%clk
0:01:05.7]} 41... Ne8 {[%clk 0:02:39.5]} 42. Nd3 {[%clk 0:00:49.1]} 42... Kd6
{[%clk 0:02:39.9]} 43. f4 {[%clk 0:00:48.3]} 43... f6 {[%clk 0:02:37.4]} 44. Kf3
{[%clk 0:00:47]} 44... Ng7 {[%clk 0:02:37.4]} 45. g4 {[%clk 0:00:46.7]} 45...
Ne8 {[%clk 0:02:34.4]} 46. Ke4 {[%clk 0:00:46.3]} 46... Ng7 {[%clk 0:02:34.5]}
47. Ne1 {[%clk 0:00:33.5]} 47... f5+ {[%clk 0:02:30]} 48. Kf3 {[%clk 0:00:34.3]}
48... gxf4 {[%clk 0:02:27.2]} 49. Kxf4 {[%clk 0:00:33.6]} 49... e5+ {[%clk
0:02:27.8]} 50. Ke3 {[%clk 0:00:26.2]} 50... f4+ {[%clk 0:02:24.4]} 51. Ke4
{[%clk 0:00:26]} 51... Ne8 {[%clk 0:02:14.2]} 52. Nd3 {[%clk 0:00:21.1]} 52...
Nf6+ {[%clk 0:02:12.5]} 53. Kf5 {[%clk 0:00:22.3]} 53... Nd7 {[%clk 0:02:13.7]}
54. Nf2 {[%clk 0:00:19.7]} 54... Ke7 {[%clk 0:02:11.7]} 55. Ne4 {[%clk
0:00:20.1]} 55... Kf7 {[%clk 0:02:12.8]} 56. h4 {[%clk 0:00:20.9]} 56... a5
{[%clk 0:02:13]} 57. g5 {[%clk 0:00:21.3]} 57... hxg5 {[%clk 0:02:14.9]} 58.
hxg5 {[%clk 0:00:22.5]} 58... f3 {[%clk 0:01:58.8]} 59. Kg4 {[%clk 0:00:22.3]}
59... Kg6 {[%clk 0:02:00.3]} 60. Kxf3 {[%clk 0:00:22.6]} 60... Kf5 {[%clk
0:02:02.2]} 61. Ke3 {[%clk 0:00:22.7]} 61... Kg6 {[%clk 0:01:59.3]} 62. Kf2
{[%clk 0:00:23.8]} 62... Kf5 {[%clk 0:01:53.2]} 63. Kf3 {[%clk 0:00:24.9]} 63...
Nf8 {[%clk 0:01:51.2]} 64. Nxc5 {[%clk 0:00:25.1]} 64... Ng6 {[%clk 0:01:52.6]}
65. Ne4 {[%clk 0:00:24.8]} 65... Nh4+ {[%clk 0:01:53.5]} 66. Kg3 {[%clk
0:00:23.6]} 66... Ng6 {[%clk 0:01:55]} 67. Kf3 {[%clk 0:00:21.8]} 67... Nh4+
{[%clk 0:01:55.4]} 68. Kg3 {[%clk 0:00:20.4]} 68... Ng6 {[%clk 0:01:56.6]} 69.
Nd6+ {[%clk 0:00:18.8]} 69... Kxg5 {[%clk 0:01:57]} 70. c5 {[%clk 0:00:17.9]}
70... Ne7 {[%clk 0:01:55.8]} 71. Kf3 {[%clk 0:00:17.4]} 71... Kf6 {[%clk
0:01:52.8]} 72. Ke4 {[%clk 0:00:18.5]} 72... Ke6 {[%clk 0:01:54.7]} 73. a3
{[%clk 0:00:18.3]} 73... Nc6 {[%clk 0:01:54.8]} 74. Nc4 {[%clk 0:00:18.6]} 74...
Nd4 {[%clk 0:01:46.6]} 75. Nxa5 {[%clk 0:00:17.6]} 75... Kf6 {[%clk 0:01:45.3]}
76. b4 {[%clk 0:00:17.9]} 76... Nc2 {[%clk 0:01:44.1]} 77. Nc4 {[%clk
0:00:18.4]} 77... Ke6 {[%clk 0:01:44]} 78. c6 {[%clk 0:00:18.4]} 78... Ke7
{[%clk 0:01:45.2]} 79. b5 {[%clk 0:00:19.1]} 79... Kd8 {[%clk 0:01:43.6]} 80. b6
{[%clk 0:00:19.7]} 80... Kc8 {[%clk 0:01:44.9]} 81. b7+ {[%clk 0:00:20.3]} 81...
Kc7 {[%clk 0:01:46.1]} 82. Nxe5 {[%clk 0:00:20.8]} 82... Nxa3 {[%clk 0:01:45.8]}
83. Nd7 {[%clk 0:00:21.4]} 1-0

[Event "*** Qualifier 4: Titled Tuesday 3|2 Blitz"]
[Site "Chess.com"]
[Date "2017.04.25"]
[Round "7"]
[White "abubakrtagelsir"]
[Black "gumersindo"]
[Result "1/2-1/2"]
[WhiteElo "2149"]
[BlackElo "2280"]
[TimeControl "180+2"]
[EndTime "14:33:26 PDT"]
[Termination "Game drawn by repetition"]

1. e4 {[%clk 0:03:00]} 1... e5 {[%clk 0:03:00.6]} 2. Nf3 {[%clk 0:02:58.8]} 2...
Nc6 {[%clk 0:03:01.3]} 3. d4 {[%clk 0:02:58.7]} 3... exd4 {[%clk 0:03:02.2]} 4.
Bc4 {[%clk 0:02:59]} 4... Bc5 {[%clk 0:03:02]} 5. c3 {[%clk 0:02:59]} 5... Nf6
{[%clk 0:03:02.4]} 6. cxd4 {[%clk 0:02:58.1]} 6... Bb4+ {[%clk 0:03:03]} 7. Bd2
{[%clk 0:02:58.6]} 7... Bxd2+ {[%clk 0:03:03.8]} 8. Nbxd2 {[%clk 0:02:59]} 8...
d5 {[%clk 0:03:04.9]} 9. exd5 {[%clk 0:02:57.9]} 9... Nxd5 {[%clk 0:03:06.1]}
10. Qb3 {[%clk 0:02:57.5]} 10... Na5 {[%clk 0:03:06]} 11. Qa4+ {[%clk
0:02:56.4]} 11... Nc6 {[%clk 0:03:07.1]} 12. Qb3 {[%clk 0:02:56]} 12... Na5
{[%clk 0:02:55.9]} 13. Qa4+ {[%clk 0:02:54.6]} 13... Nc6 {[%clk 0:02:50.7]} 14.
Qb3 {[%clk 0:02:54.5]} 14... Nce7 {[%clk 0:02:38.7]} 15. O-O {[%clk 0:02:49.3]}
15... O-O {[%clk 0:02:39.2]} 16. Rfe1 {[%clk 0:02:40.2]} 16... c6 {[%clk
0:02:35.8]} 17. Ne4 {[%clk 0:02:40.6]} 17... Rb8 {[%clk 0:02:28]} 18. Ne5 {[%clk
0:02:35.9]} 18... Bf5 {[%clk 0:02:25.7]} 19. Ng3 {[%clk 0:02:30.2]} 19... Be6
{[%clk 0:02:24.8]} 20. a4 {[%clk 0:02:26.8]} 20... b5 {[%clk 0:02:17.1]} 21.
axb5 {[%clk 0:02:25.5]} 21... cxb5 {[%clk 0:02:18.4]} 22. Bf1 {[%clk 0:02:16.2]}
22... a5 {[%clk 0:02:02.8]} 23. Qa3 {[%clk 0:02:13.9]} 23... a4 {[%clk
0:01:57.3]} 24. Qc5 {[%clk 0:02:13]} 24... Qb6 {[%clk 0:01:51.6]} 25. Ne4 {[%clk
0:02:03.5]} 25... Rfc8 {[%clk 0:01:48.5]} 26. Qxb6 {[%clk 0:02:01.1]} 26... Rxb6
{[%clk 0:01:48.7]} 27. Nc5 {[%clk 0:02:01.4]} 27... Nf5 {[%clk 0:01:42]} 28.
Nxe6 {[%clk 0:01:47.7]} 28... fxe6 {[%clk 0:01:41.7]} 29. Rac1 {[%clk
0:01:47.6]} 29... Rd8 {[%clk 0:01:33.6]} 30. Red1 {[%clk 0:01:45.1]} 30... h6
{[%clk 0:01:23.6]} 31. g4 {[%clk 0:01:40.5]} 31... Nd6 {[%clk 0:01:09.1]} 32.
Rc5 {[%clk 0:01:35]} 32... b4 {[%clk 0:01:01.2]} 33. Bg2 {[%clk 0:01:14.9]}
33... Nf4 {[%clk 0:01:00.2]} 34. Bc6 {[%clk 0:00:53.7]} 34... a3 {[%clk
0:01:00.5]} 35. bxa3 {[%clk 0:00:54.1]} 35... bxa3 {[%clk 0:01:01.2]} 36. Ra5
{[%clk 0:00:48.8]} 36... Rc8 {[%clk 0:00:48.3]} 37. d5 {[%clk 0:00:15]} 37...
exd5 {[%clk 0:00:34.3]} 38. Bxd5+ {[%clk 0:00:15.2]} 38... Nxd5 {[%clk
0:00:31.3]} 39. Rdxd5 {[%clk 0:00:13.9]} 39... Nc4 {[%clk 0:00:17.5]} 40. Nxc4
{[%clk 0:00:12.9]} 40... Rxc4 {[%clk 0:00:18.1]} 41. h3 {[%clk 0:00:13.2]} 41...
Rc3 {[%clk 0:00:18.2]} 42. Rd8+ {[%clk 0:00:13.6]} 42... Kh7 {[%clk 0:00:18.8]}
43. Kg2 {[%clk 0:00:14.3]} 43... Rbb3 {[%clk 0:00:18.1]} 44. Rda8 {[%clk
0:00:14.6]} 44... Rxh3 {[%clk 0:00:18.3]} 45. R8a7 {[%clk 0:00:14.3]} 45... Rhc3
{[%clk 0:00:16.4]} 46. Rf7 {[%clk 0:00:14.2]} 46... Rc8 {[%clk 0:00:17.3]} 47.
Rfa7 {[%clk 0:00:13.2]} 47... Rc4 {[%clk 0:00:16.9]} 48. Ra4 {[%clk 0:00:09.1]}
48... Rxa4 {[%clk 0:00:13.6]} 49. Rxa4 {[%clk 0:00:09.6]} 49... Kg6 {[%clk
0:00:15.2]} 50. f3 {[%clk 0:00:10.6]} 50... Kg5 {[%clk 0:00:15.4]} 51. Kg3
{[%clk 0:00:12.5]} 51... Kf6 {[%clk 0:00:16.4]} 52. Ra5 {[%clk 0:00:13.3]} 52...
Ke6 {[%clk 0:00:17.5]} 53. Ra7 {[%clk 0:00:12.7]} 53... g6 {[%clk 0:00:13.3]}
54. Ra6+ {[%clk 0:00:12.5]} 54... Kf7 {[%clk 0:00:11.8]} 55. Ra7+ {[%clk
0:00:13.1]} 55... Kf6 {[%clk 0:00:12.8]} 56. Ra6+ {[%clk 0:00:13.7]} 56... Kg7
{[%clk 0:00:14.2]} 57. Ra7+ {[%clk 0:00:14.4]} 57... Kf6 {[%clk 0:00:15.6]} 58.
Ra6+ {[%clk 0:00:15.2]} 58... Kf7 {[%clk 0:00:17.2]} 59. Ra7+ {[%clk 0:00:16]}
59... Ke6 {[%clk 0:00:18.8]} 60. Ra6+ {[%clk 0:00:16.7]} 60... Kf7 {[%clk
0:00:16.7]} 61. Ra7+ {[%clk 0:00:17.3]} 61... Kf6 {[%clk 0:00:18]} 62. Ra6+
{[%clk 0:00:17.8]} 62... Kf7 {[%clk 0:00:19.5]} 63. Ra7+ {[%clk 0:00:18.3]}
63... Kf6 {[%clk 0:00:21]} 64. Ra6+ {[%clk 0:00:18.8]} 64... Kf7 {[%clk
0:00:22.3]} 1/2-1/2